bitfinex/quotes_SOLUSD_20250318
["timestamp","ask_amount","ask_price","bid_price","bid_amount"]
[1742300969370,16.30091269,123.62,123.6,28.3163]
[1742300969674,16.30091269,123.61,123.6,28.3163]
[1742300969874,16.30091269,123.62,123.6,28.3163]
[1742300970372,16.30091269,123.63,123.6,28.3163]
[1742300970557,27.04,123.65,123.6,28.3163]
[1742300971377,27.04,123.65,123.6,28.3793]
[1742300973061,27.04,123.65,123.61,18.64964886]
[1742300973462,27.04,123.65,123.62,28.3125]
[1742300974376,20.0,123.65,123.62,28.3125]
[1742300974683,27.04,123.65,123.62,28.3125]
[1742300974864,27.04,123.65,123.62,8.0893]
[1742300975466,27.04,123.65,123.6,68.8325]
[1742300977982,27.04,123.65,123.6,28.3795]
[1742300984777,0.28432314,123.64,123.6,8.1536]
[1742300985884,20.0,123.61,123.6,0.063]
[1742300986181,27.32432314,123.61,123.6,0.063]
[1742300986487,27.04,123.61,123.6,0.063]
[1742300991102,27.32432314,123.61,123.6,0.063]
[1742301001404,35.41422314,123.61,123.6,0.063]
[1742301002805,54.20603357,123.61,123.6,0.063]
[1742301005009,268.30603357,123.61,123.6,0.063]
[1742301006889,260.21613357,123.61,123.6,0.063]
[1742301007094,241.42432314,123.61,123.6,0.063]
[1742301008131,249.51422314,123.61,123.6,0.063]
[1742301008812,268.30603357,123.61,123.6,0.063]
[1742301009537,265.79544645,123.61,123.6,0.063]
[1742301009741,8.1164,123.67,123.6,1.6773]
[1742301010040,20.0,123.63,123.6,1.6773]
[1742301010337,0.28432314,123.64,123.6,9.7676]
[1742301010338,20.0,123.61,123.6,9.7676]
[1742301010906,27.04,123.62,123.6,9.7676]
[1742301011129,7.04,123.62,123.6,9.7676]
[1742301011529,20.0,123.62,123.6,9.7676]
[1742301012115,20.0,123.61,123.6,9.7676]
[1742301014213,20.0,123.61,123.6,1.6773]
[1742301014540,20.0,123.61,123.6,9.7679]
[1742301015716,20.0,123.62,123.6,1.6773]
[1742301015918,20.0,123.62,123.6,0.063]
[1742301016123,28.0893,123.62,123.6,0.063]
[1742301016719,20.0,123.61,123.6,0.063]
[1742301018427,20.28432314,123.61,123.6,0.063]
[1742301019839,28.37422314,123.61,123.6,0.063]
[1742301020544,47.16603357,123.61,123.6,0.063]
[1742301020743,47.66603357,123.61,123.6,0.0001]
[1742301021206,57.37485035,123.61,123.6,0.0001]
[1742301022511,43.89613357,123.6,123.59,0.063]
[1742301022712,52.21245035,123.6,123.59,0.063]
[1742301022912,60.30305035,123.6,123.59,0.063]
[1742301027034,69.00890339,123.6,123.59,0.0001]
[1742301029420,68.50890339,123.6,123.59,0.0001]
[1742301029621,69.00890339,123.6,123.59,0.0001]
[1742301030537,0.14216157,123.57,123.56,0.063]
[1742301030740,26.11613357,123.57,123.56,0.063]
[1742301030954,26.61613357,123.57,123.56,0.063]
[1742301031171,50.93613357,123.57,123.56,0.063]
[1742301031342,50.93613357,123.57,123.56,0.0001]
[1742301031660,26.11613357,123.57,123.56,0.0001]
[1742301032148,25.973972,123.57,123.56,0.0001]
[1742301032336,26.11613357,123.57,123.56,0.0001]
[1742301032540,240.33613357,123.57,123.56,0.0001]
[1742301035222,214.36216157,123.57,123.56,0.0001]
[1742301035451,221.26,123.57,123.56,0.0001]
[1742301035660,221.54432314,123.57,123.56,0.0001]
[1742301035959,214.50432314,123.57,123.56,0.0001]
[1742301036326,221.54432314,123.57,123.56,0.0001]
[1742301037030,221.26,123.57,123.56,0.0001]
[1742301037234,214.22,123.57,123.56,0.0001]
[1742301040758,20.0,123.57,123.56,0.0001]
[1742301040956,7.04,123.59,123.56,0.0001]
[1742301041179,20.0,123.57,123.56,0.0001]
[1742301043869,0.28432314,123.57,123.56,0.0001]
[1742301046268,8.37682314,123.57,123.56,0.0001]
[1742301046651,27.16863357,123.57,123.56,0.0001]
[1742301055078,241.47163357,123.57,123.56,0.0001]
[1742301057870,241.97163357,123.57,123.56,0.0001]
[1742301058491,241.47163357,123.57,123.56,0.0001]
[1742301058885,241.97163357,123.57,123.56,0.0001]
[1742301059066,241.47163357,123.57,123.56,0.0001]
[1742301059462,241.97163357,123.57,123.56,0.0001]
[1742301060899,266.29163357,123.57,123.56,0.0001]
[1742301061407,241.47163357,123.57,123.56,0.0001]
[1742301061906,241.97163357,123.57,123.56,0.0001]
[1742301062474,266.29163357,123.57,123.56,0.0001]
[1742301063175,241.47163357,123.57,123.56,0.0001]
[1742301064074,248.22731043,123.57,123.56,0.0001]
[1742301064687,248.51163357,123.57,123.56,0.0001]
[1742301065291,233.37913357,123.57,123.56,0.0001]
[1742301065477,240.41913357,123.57,123.56,0.0001]
[1742301067285,221.343,123.57,123.56,0.0001]
[1742301067892,214.58732314,123.57,123.56,0.0001]
[1742301068098,221.62732314,123.57,123.56,0.0001]
[1742301069706,20.0,123.52,123.5,0.4]
[1742301069882,27.32432314,123.51,123.5,0.4]
[1742301070083,27.04,123.51,123.5,0.4]
[1742301071075,27.04,123.51,123.5,6.8841]
[1742301073016,20.0,123.52,123.5,6.8841]
[1742301073221,7.04,123.51,123.5,6.8841]
[1742301073784,7.04,123.51,123.5,0.4]
[1742301077106,27.04,123.51,123.5,8.4971]
[1742301077304,7.04,123.51,123.5,8.4971]
[1742301078936,7.04,123.51,123.5,8.5271]
[1742301079142,16.40657101,123.52,123.5,8.5271]
[1742301079943,16.40657101,123.51,123.5,8.5271]
[1742301080148,36.40657101,123.51,123.5,0.43]
[1742301082037,36.40657101,123.51,123.5,8.5271]
[1742301085448,36.40657101,123.51,123.5,0.43]
[1742301086148,16.40657101,123.51,123.5,0.43]
[1742301086651,24.78739415,123.51,123.5,0.43]
[1742301086829,36.69089415,123.51,123.5,0.43]
[1742301087031,16.69089415,123.51,123.5,0.43]
[1742301087348,24.78739415,123.51,123.5,0.43]
[1742301087954,16.69089415,123.51,123.5,0.43]
[1742301088147,16.40657101,123.51,123.5,0.43]
[1742301088632,24.50307101,123.51,123.5,0.43]
[1742301089134,43.57920458,123.51,123.5,0.43]
[1742301089330,24.78739415,123.51,123.5,0.43]
[1742301090848,44.78739415,123.51,123.5,0.43]
[1742301091055,24.78739415,123.51,123.5,0.43]
[1742301091743,43.57920458,123.51,123.5,0.43]
[1742301092142,16.69089415,123.51,123.5,0.43]
[1742301092353,43.57920458,123.51,123.5,0.43]
[1742301093267,16.69089415,123.51,123.5,0.43]
[1742301093469,16.40657101,123.51,123.5,0.43]
[1742301094554,16.40657101,123.51,123.5,8.5271]
[1742301095138,23.44657101,123.51,123.5,8.5271]
[1742301096038,23.44657101,123.51,123.5,8.1271]
[1742301097061,27.04,123.51,123.5,8.1271]
[1742301097643,20.0,123.51,123.5,8.1271]
[1742301098862,7.103,123.56,123.51,8.01236157]
[1742301099158,7.103,123.56,123.52,16.40657101]
[1742301099540,7.103,123.56,123.52,29.04507342]
[1742301099863,23.50957101,123.56,123.52,12.63850241]
[1742301100060,16.40657101,123.55,123.53,12.63850241]
[1742301100363,16.40657101,123.54,123.53,12.63850241]
[1742301100737,16.40657101,123.55,123.53,12.63850241]
[1742301100941,23.50957101,123.56,123.53,8.0951]
[1742301101143,23.50957101,123.56,123.53,28.333]
[1742301101342,7.103,123.56,123.53,28.333]
[1742301101643,7.103,123.56,123.54,1.664]
[1742301103059,7.103,123.56,123.55,8.0938]
[1742301104567,0.063,123.57,123.55,8.0938]
[1742301104781,0.0001,123.57,123.55,8.0938]
[1742301105069,0.063,123.6,123.58,8.0919]
[1742301109665,25.66036864,123.6,123.57,9.6785]
[1742301109874,25.59736864,123.58,123.57,1.5862]
[1742301110172,32.63736864,123.58,123.54,14.21090241]
[1742301110378,25.59736864,123.55,123.54,14.21090241]
[1742301111258,25.59736864,123.55,123.51,1.555]
[1742301111458,25.59736864,123.53,123.51,1.555]
[1742301111655,25.59736864,123.53,123.51,9.6514]
[1742301111862,25.59736864,123.54,123.51,9.6514]
[1742301112060,15.1322,123.58,123.51,1.555]
[1742301112061,25.59736864,123.53,123.51,1.555]
[1742301112672,25.59736864,123.52,123.51,1.555]
[1742301113978,7.04,123.53,123.51,1.555]
[1742301114156,25.59736864,123.52,123.51,1.555]
[1742301115857,25.59736864,123.52,123.5,0.03]
[1742301116068,25.59736864,123.51,123.5,0.03]
[1742301117454,33.69386864,123.51,123.5,0.03]
[1742301117661,25.59736864,123.51,123.5,0.03]
[1742301119482,52.62784064,123.51,123.5,0.03]
[1742301120359,44.53134064,123.51,123.5,0.03]
[1742301120670,25.59736864,123.51,123.5,0.03]
[1742301122058,44.53134064,123.51,123.5,0.03]
[1742301124160,52.62784064,123.51,123.5,0.03]
[1742301124356,78.22520928,123.51,123.5,0.03]
[1742301124877,160.16727085,123.51,123.5,0.03]
[1742301125278,78.36737085,123.51,123.5,0.03]
[1742301128665,52.77000221,123.51,123.5,0.03]
[1742301130363,78.36737085,123.51,123.5,0.03]
[1742301132867,78.86737085,123.51,123.5,0.03]
[1742301133291,78.86737085,123.51,123.5,0.0001]
[1742301133492,20.0,123.44,123.42,9.6848]
[1742301133791,32.63736864,123.43,123.42,9.6848]
[1742301134086,7.04,123.43,123.42,9.6848]
[1742301134769,7.04,123.43,123.42,9.1848]
[1742301139796,16.42495389,123.45,123.42,9.1848]
[1742301140094,23.46495389,123.46,123.42,69.9528]
[1742301140674,16.42495389,123.46,123.42,69.9528]
[1742301141396,16.42495389,123.45,123.42,69.9528]
[1742301141974,16.42495389,123.45,123.42,69.9828]
[1742301142506,16.42495389,123.44,123.42,29.4708]
[1742301142798,16.42495389,123.43,123.42,9.2148]
[1742301142972,16.42495389,123.43,123.42,8.1323]
[1742301143177,16.42495389,123.43,123.42,0.03]
[1742301145295,20.0,123.43,123.42,0.03]
[1742301145599,36.42495389,123.43,123.42,0.03]
[1742301145993,43.46495389,123.43,123.42,0.03]
[1742301149383,36.42495389,123.43,123.42,0.03]
[1742301152202,36.42495389,123.43,123.38,0.0646]
[1742301152398,16.42495389,123.42,123.38,0.0646]
[1742301153297,16.42495389,123.42,123.38,68.9574]
[1742301154305,16.42495389,123.43,123.38,85.38235389]
[1742301154804,16.42495389,123.42,123.38,68.9574]
[1742301156204,16.42495389,123.43,123.38,85.38235389]
[1742301156707,16.42495389,123.43,123.38,125.90755389]
[1742301157698,16.42495389,123.42,123.38,68.9574]
[1742301158098,16.42495389,123.42,123.38,68.9874]
[1742301159619,7.04,123.44,123.38,68.9874]
[1742301159620,32.04674602,123.41,123.38,68.9874]
[1742301160393,15.62179213,123.4,123.38,68.9874]
[1742301160807,15.62179213,123.4,123.38,28.4622]
[1742301161495,6.00838159,123.39,123.38,28.4622]
[1742301162114,8.159e-05,123.39,123.38,28.4622]
[1742301162700,9.62907718,123.39,123.38,28.4622]
[1742301163917,33.09403107,123.39,123.38,8.135]
[1742301164217,33.09403107,123.39,123.38,0.03]
[1742301167814,16.66907718,123.39,123.38,0.03]
[1742301167997,33.09403107,123.39,123.38,0.03]
[1742301170299,33.15703107,123.39,123.38,0.03]
[1742301170498,23.52795389,123.39,123.38,0.03]
[1742301176300,50.56622589,123.39,123.38,0.03]
[1742301178115,23.52795389,123.39,123.38,0.03]
[1742301181729,16.48795389,123.39,123.38,0.03]
[1742301182027,23.52795389,123.39,123.38,0.03]
[1742301184427,0.063,123.39,123.38,0.03]
[1742301185725,20.063,123.39,123.38,0.03]
[1742301185918,0.0001,123.39,123.38,0.03]
[1742301186122,0.0001,123.39,123.38,6.2407]
[1742301186316,0.0001,123.39,123.38,14.3457]
[1742301190055,0.0001,123.39,123.38,33.13751043]
[1742301191649,0.0001,123.39,123.38,45.77601284]
[1742301193052,16.42495389,123.42,123.38,66.03861284]
[1742301195164,0.063,123.39,123.38,66.03861284]
[1742301195341,16.42495389,123.42,123.38,66.03861284]
[1742301199750,16.42495389,123.48,123.43,1.5377]
[1742301200061,16.42495389,123.49,123.44,35.21676432]
[1742301200630,16.42495389,123.49,123.45,28.3515]
[1742301200841,16.42495389,123.5,123.45,44.77645389]
[1742301201449,16.42495389,123.5,123.45,57.4149563]
[1742301201750,16.42495389,123.5,123.45,97.9171563]
[1742301201924,16.42495389,123.5,123.46,0.14216157]
[1742301202129,16.42495389,123.51,123.46,47.85526673]
[1742301202847,16.42495389,123.51,123.47,28.3469]
[1742301203949,16.48795389,123.52,123.48,1.6382]
[1742301204840,16.42495389,123.51,123.49,8.0978]
[1742301205863,36.42495389,123.51,123.49,8.0978]
[1742301206669,20.0,123.51,123.49,8.0978]
[1742301207254,20.063,123.51,123.49,8.0978]
[1742301209062,0.063,123.51,123.49,8.0978]
[1742301209266,0.063,123.51,123.49,24.52275389]
[1742301210941,0.063,123.51,123.49,8.0978]
[1742301211338,16.48795389,123.51,123.49,8.0978]
[1742301211740,16.48795389,123.51,123.45,53.14070241]
[1742301211741,16.42495389,123.5,123.45,208.49120241]
[1742301211943,16.42495389,123.48,123.46,8.0997]
[1742301213146,16.42495389,123.48,123.45,8.1004]
[1742301213448,16.42495389,123.47,123.45,8.1004]
[1742301213648,16.42495389,123.46,123.45,8.1004]
[1742301215043,16.42495389,123.46,123.42,28.3579]
[1742301216838,16.42495389,123.45,123.42,28.3579]
[1742301217457,20.0,123.43,123.42,28.3579]
[1742301219070,16.42495389,123.43,123.41,8.103]
[1742301219455,36.42495389,123.43,123.41,8.103]
[1742301220056,16.42495389,123.42,123.41,8.103]
[1742301220458,36.42495389,123.43,123.41,8.103]
[1742301220661,7.04,123.44,123.4,20.2586]
[1742301220848,7.04,123.44,123.41,16.42495389]
[1742301221054,7.04,123.44,123.41,35.07460275]
[1742301221252,20.0,123.43,123.41,35.07460275]
[1742301221552,20.0,123.43,123.4,36.68355389]
[1742301221752,36.42495389,123.44,123.4,36.68355389]
[1742301222572,20.0,123.44,123.4,36.68355389]
[1742301222760,20.0,123.44,123.4,44.78725389]
[1742301223275,20.0,123.44,123.4,54.02468408]
[1742301223570,25.66238408,123.43,123.4,28.3623]
[1742301223766,25.66238408,123.42,123.4,8.1037]
[1742301224356,20.0,123.41,123.4,8.1037]
[1742301225066,20.0,123.41,123.39,28.3941]
[1742301227046,20.0,123.4,123.39,8.1343]
[1742301227784,45.66238408,123.4,123.39,8.1343]
[1742301229079,20.0,123.4,123.39,0.03]
[1742301231353,25.66238408,123.43,123.39,0.03]
[1742301231558,7.04,123.43,123.39,25.69238408]
[1742301232061,0.063,123.41,123.39,25.69238408]
[1742301232362,0.063,123.41,123.4,25.66238408]
[1742301232670,32.70238408,123.45,123.4,45.97799451]
[1742301233375,25.66238408,123.45,123.41,28.3606]
[1742301233582,20.0,123.42,123.41,28.3606]
[1742301239084,45.66238408,123.43,123.41,28.3606]
[1742301239285,25.66238408,123.42,123.41,8.103]
[1742301239674,20.0,123.4,123.39,143.2343]
[1742301239884,45.66238408,123.4,123.39,8.1343]
[1742301241293,45.66238408,123.4,123.39,0.03]
[1742301242874,25.66238408,123.41,123.39,0.03]
[1742301244686,20.0,123.4,123.39,0.03]
[1742301245470,20.0,123.4,123.39,8.1343]
[1742301246196,16.43234505,123.41,123.39,8.1343]
[1742301247198,16.43234505,123.4,123.39,8.1343]
[1742301247501,16.43234505,123.4,123.39,0.03]
[1742301247672,16.43234505,123.41,123.39,0.03]
[1742301248078,20.0,123.4,123.39,0.03]
[1742301250404,23.47234505,123.42,123.39,0.03]
[1742301250781,16.43234505,123.4,123.39,0.03]
[1742301251287,7.04,123.42,123.39,0.03]
[1742301251288,23.47234505,123.42,123.39,0.03]
[1742301253007,23.47234505,123.43,123.39,18.82181043]
[1742301253179,16.43234505,123.44,123.39,36.84445548]
[1742301253591,16.43234505,123.44,123.4,28.363]
[1742301253792,214.4,123.47,123.41,18.79181043]
[1742301253982,23.47234505,123.46,123.41,35.22415548]
[1742301254375,221.44,123.47,123.41,35.22415548]
[1742301254581,8.1598,123.51,123.46,16.43234505]
[1742301254582,0.063,123.51,123.46,16.43234505]
[1742301254986,0.063,123.51,123.48,16.43234505]
[1742301255290,23.63534505,123.54,123.49,16.43234505]
[1742301255685,16.43234505,123.52,123.5,28.34]
[1742301256081,16.43234505,123.51,123.5,28.34]
[1742301256278,16.43234505,123.52,123.5,28.34]
[1742301256487,7.203,123.54,123.5,28.34]
[1742301256488,0.03,123.51,123.5,28.34]
[1742301256704,16.43234505,123.53,123.5,28.34]
[1742301256885,16.43234505,123.53,123.51,12.63850241]
[1742301257086,25.62623818,123.53,123.51,12.63850241]
[1742301257486,25.68923818,123.54,123.51,12.63850241]
[1742301257685,0.063,123.54,123.52,8.0958]
[1742301258079,0.063,123.54,123.52,24.85066798]
[1742301258502,25.62623818,123.55,123.52,45.09026798]
[1742301258709,25.62623818,123.55,123.53,5.58095632]
[1742301259790,25.62623818,123.55,123.53,12.65018448]
[1742301260098,25.62623818,123.54,123.53,12.65018448]
[1742301260819,25.62623818,123.54,123.52,8.0958]
[1742301261020,25.62623818,123.53,123.52,8.0958]
[1742301262890,25.62623818,123.54,123.52,8.0958]
[1742301263498,45.62623818,123.55,123.52,28.3354]
[1742301263697,25.62623818,123.54,123.52,28.3354]
[1742301264588,25.62623818,123.54,123.52,40.98558448]
[1742301265501,20.0,123.54,123.52,40.98558448]
[1742301265702,25.62623818,123.55,123.52,40.98558448]
[1742301265997,6.17620461,123.54,123.52,40.98558448]
[1742301266189,25.62623818,123.54,123.52,40.98558448]
[1742301266795,25.62623818,123.54,123.52,28.3354]
[1742301267719,25.62623818,123.55,123.52,28.3354]
[1742301268020,25.62623818,123.55,123.52,20.2396]
[1742301268313,0.063,123.56,123.53,25.76839975]
[1742301269310,0.063,123.56,123.53,0.14216157]
[1742301270218,0.063,123.56,123.54,8.0945]
[1742301271720,0.0001,123.56,123.55,0.14216157]
[1742301271906,0.0001,123.56,123.55,25.76839975]
[1742301272104,0.0001,123.56,123.55,33.86219975]
[1742301272498,0.0001,123.56,123.55,8.23596157]
[1742301274902,0.0001,123.57,123.55,8.23596157]
[1742301275101,0.0001,123.57,123.55,143.33596157]
[1742301275307,0.0001,123.57,123.56,25.76839975]
[1742301276227,0.0001,123.57,123.56,33.86159975]
[1742301276522,0.0001,123.57,123.56,52.79557175]
[1742301276723,0.0001,123.57,123.56,54.43827175]
[1742301277025,25.62623818,123.63,123.57,0.14216157]
[1742301277231,25.68923818,123.64,123.59,44.41804861]
[1742301278411,25.68923818,123.64,123.6,28.3171]
[1742301278816,25.62623818,123.63,123.6,28.3171]
[1742301279815,25.62623818,123.62,123.6,28.3171]
[1742301280010,25.62623818,123.61,123.6,8.0906]
[1742301280214,25.62623818,123.61,123.58,8.0919]
[1742301280531,25.62623818,123.6,123.58,8.0919]
[1742301281333,25.62623818,123.6,123.57,47.11571043]
[1742301281535,45.62623818,123.61,123.57,47.11571043]
[1742301281739,25.62623818,123.6,123.57,28.3239]
[1742301282027,25.62623818,123.58,123.57,8.0925]
[1742301282215,25.62623818,123.58,123.56,8.0929]
[1742301282416,25.62623818,123.57,123.56,8.0929]
[1742301283522,25.62623818,123.57,123.54,8.1575]
[1742301283724,25.62623818,123.55,123.54,0.063]
[1742301283917,27.21783818,123.6,123.54,0.063]
[1742301283918,45.62623818,123.56,123.54,0.063]
[1742301284411,20.0,123.56,123.54,0.063]
[1742301284616,45.62623818,123.57,123.54,0.063]
[1742301284931,20.0,123.57,123.54,25.68923818]
[1742301285512,20.0,123.57,123.55,8.0938]
[1742301285718,25.62623818,123.58,123.55,28.3285]
[1742301285917,25.62623818,123.56,123.55,8.0938]
[1742301286627,25.62623818,123.58,123.55,8.0938]
[1742301286831,25.62623818,123.58,123.55,28.3285]
[1742301287515,25.62623818,123.58,123.55,20.2347]
[1742301287824,25.62623818,123.59,123.55,20.2347]
[1742301288525,25.62623818,123.6,123.55,45.86093818]
[1742301288716,7.1,123.61,123.56,44.41804861]
[1742301288917,7.1,123.61,123.57,1.5256]
[1742301289130,25.62623818,123.62,123.57,27.15183818]
[1742301289721,25.62623818,123.62,123.58,28.3217]
[1742301290121,214.14,123.63,123.58,28.3217]
[1742301290545,25.62623818,123.61,123.58,28.3217]
[1742301291546,25.62623818,123.6,123.58,28.3217]
[1742301292143,25.65623818,123.61,123.58,28.3217]
[1742301292340,25.62623818,123.6,123.58,28.3217]
[1742301292659,25.62623818,123.59,123.57,8.0925]
[1742301292847,25.62623818,123.58,123.57,8.0925]
[1742301293528,25.62623818,123.58,123.54,28.3933]
[1742301293723,20.0,123.57,123.54,28.3933]
[1742301293924,25.62623818,123.57,123.54,28.3933]
[1742301294949,25.62623818,123.56,123.54,28.3933]
[1742301295149,45.62623818,123.56,123.54,8.1575]
[1742301296038,25.62623818,123.55,123.54,8.1575]
[1742301297323,25.62623818,123.55,123.54,0.063]
[1742301297539,32.72623818,123.55,123.54,0.063]
[1742301299146,25.62623818,123.55,123.54,0.063]
[1742301299350,32.72623818,123.55,123.54,0.063]
[1742301303147,20.0,123.52,123.49,8.0978]
[1742301303345,25.62623818,123.5,123.49,8.0978]
[1742301303565,45.62623818,123.51,123.48,8.1614]
[1742301303752,25.62623818,123.5,123.48,8.1614]
[1742301303938,25.62623818,123.49,123.48,8.1614]
[1742301304543,25.62623818,123.49,123.48,0.063]
[1742301306057,27.12,123.51,123.48,0.063]
[1742301306256,25.62623818,123.49,123.48,0.063]
[1742301306857,27.12,123.51,123.48,0.063]
[1742301306858,52.74623818,123.51,123.48,0.063]
[1742301307052,7.12,123.51,123.48,0.063]
[1742301307251,7.12,123.51,123.48,25.68923818]
[1742301307450,25.62623818,123.53,123.48,25.68923818]
[1742301307651,25.62623818,123.53,123.49,28.3423]
[1742301308958,20.0,123.51,123.49,28.3423]
[1742301309258,25.62623818,123.52,123.49,28.3423]
[1742301309670,25.62623818,123.52,123.49,20.2445]
[1742301310963,7.12,123.53,123.49,20.2445]
[1742301311139,25.62623818,123.52,123.49,20.2445]
[1742301313756,214.18,123.55,123.49,28.3423]
[1742301313757,25.62623818,123.53,123.49,28.3423]
[1742301314154,7.12,123.54,123.49,28.3423]
[1742301314464,25.62623818,123.53,123.49,28.3423]
[1742301316278,7.12,123.54,123.49,28.3423]
[1742301316485,25.62623818,123.53,123.49,28.3423]
[1742301316780,32.74623818,123.54,123.49,96.04273818]
[1742301316945,25.62623818,123.54,123.49,96.04273818]
[1742301317146,32.78623818,123.55,123.5,25.62623818]
[1742301317446,25.62623818,123.55,123.5,25.62623818]
[1742301317656,0.03,123.55,123.51,25.62623818]
[1742301318451,0.03,123.55,123.52,60.00483818]
[1742301318647,0.03,123.57,123.53,25.62623818]
[1742301319359,0.03,123.57,123.54,25.62623818]
[1742301320460,0.03,123.57,123.55,9.6]
[1742301322351,25.65623818,123.57,123.55,9.6]
[1742301322553,0.03,123.57,123.55,9.6]
[1742301330859,0.03,123.57,123.55,8.0938]
[1742301331059,45.65623818,123.57,123.55,8.0938]
[1742301331572,20.03,123.57,123.55,8.0938]
[1742301332483,45.65623818,123.57,123.55,8.0938]
[1742301332660,25.62623818,123.56,123.55,8.0938]
[1742301333689,25.62623818,123.56,123.53,8.0951]
[1742301333896,25.62623818,123.55,123.53,8.0951]
[1742301335190,25.62623818,123.56,123.53,28.333]
[1742301335893,25.62623818,123.56,123.51,94.44643818]
[1742301336676,27.13,123.57,123.51,94.44643818]
[1742301336877,25.62623818,123.56,123.51,94.44643818]
[1742301337299,52.75623818,123.57,123.52,25.62623818]
[1742301337986,0.03,123.57,123.55,25.62623818]
[1742301338376,0.03,123.61,123.57,18.79181043]
[1742301338580,0.03,123.61,123.58,25.62623818]
[1742301338889,0.03,123.61,123.6,25.62623818]
[1742301339091,0.0001,123.61,123.6,27.22033818]
[1742301339675,0.0001,123.61,123.6,46.29647175]
[1742301339875,0.0001,123.61,123.6,54.38707175]
[1742301340280,0.0001,123.61,123.6,195.99827175]
[1742301340982,0.0001,123.61,123.6,170.08771043]
[1742301341177,0.0001,123.61,123.6,143.1906]
[1742301342396,0.0001,123.61,123.6,161.98241043]
[1742301342573,0.0001,123.61,123.6,187.60864861]
[1742301343596,0.0001,123.61,123.6,52.50864861]
[1742301343982,0.0001,123.61,123.6,52.79297175]
[1742301345184,0.0001,123.61,123.6,26.88241043]
[1742301345678,0.0001,123.61,123.6,52.50864861]
[1742301346002,0.03,123.67,123.63,0.14216157]
[1742301346215,0.03,123.67,123.64,25.62623818]
[1742301346431,0.03,123.67,123.65,25.62623818]
[1742301347204,0.03,123.67,123.64,33.44423818]
[1742301347778,0.03,123.67,123.65,18.79181043]
[1742301347981,0.03,123.67,123.66,8.0866]
[1742301349782,0.03,123.67,123.66,27.16273357]
[1742301349984,0.03,123.68,123.67,27.16213357]
[1742301351292,0.03,123.68,123.67,8.086]
[1742301352192,0.03,123.68,123.66,8.0866]
[1742301353190,25.65623818,123.68,123.66,8.0866]
[1742301353407,25.65623818,123.68,123.62,18.64964886]
[1742301353408,45.62623818,123.67,123.62,18.64964886]
[1742301353598,25.62623818,123.66,123.63,28.3102]
[1742301353909,25.62623818,123.65,123.63,28.3102]
[1742301354386,25.62623818,123.65,123.63,20.2216]
[1742301355213,25.62623818,123.65,123.62,8.0893]
[1742301355600,25.62623818,123.64,123.62,8.0893]
[1742301355800,25.62623818,123.63,123.6,0.063]
[1742301355996,25.62623818,123.61,123.6,8.1532]
[1742301356308,32.80623818,123.61,123.6,0.063]
[1742301358695,7.18,123.61,123.6,0.063]
[1742301358893,32.80623818,123.61,123.6,0.063]
[1742301359097,6.5389,123.65,123.6,0.063]
[1742301359302,20.0,123.62,123.6,0.063]
[1742301359715,32.80623818,123.64,123.6,0.063]
[1742301359902,25.62623818,123.63,123.6,0.063]
[1742301360535,25.62623818,123.61,123.6,0.063]
[1742301360835,51.25247636,123.61,123.6,0.063]
[1742301361321,81.95865774,123.61,123.6,0.063]
[1742301361538,40.97932887,123.61,123.6,0.063]
[1742301362435,184.28785202,123.61,123.6,0.063]
[1742301362602,192.37775202,123.61,123.54,8.0945]
[1742301362799,40.97932887,123.55,123.54,8.0945]
[1742301364114,40.97932887,123.55,123.52,20.3021]
[1742301365328,48.17932887,123.56,123.52,20.3021]
[1742301366223,7.2,123.56,123.54,0.063]
[1742301366524,48.17932887,123.59,123.54,41.04232887]
[1742301367410,40.97932887,123.58,123.54,0.063]